fUST/lending_fUST_20250615
["ID","MTS","AMOUNT","RATE_DAILY","PERIOD"]
[365938721,1749991852323,-460.0,0.00024107,2]
[365938722,1749991852332,-565.63,0.00024107,2]
[365938723,1749991852342,-1088.49,0.00024107,2]
[365938724,1749991852351,-1274.72,0.00024108,2]
[365938725,1749991852360,-460.0,0.00024108,2]
[365938726,1749991852370,-1051.34,0.00024109,2]
[365938727,1749991852379,-1024.56,0.00024109,2]
[365938728,1749991852388,-856.09,0.00024109,2]
[365938729,1749991852397,-168.96670334,0.00024109,2]
[365938730,1749991852407,-1121.96,0.00024109,2]
[365938731,1749991852419,-1202.41,0.00024109,2]
[365938732,1749991852428,-712.46,0.00024109,2]
[365938733,1749991852437,-695.89,0.00024109,2]
[365938734,1749991852447,-2200.0,0.00024117,2]
[365938735,1749991852457,-500.0,0.00024152,2]
[365938736,1749991852466,-168.0,0.00024153,2]
[365938737,1749991852476,-168.0,0.00024179,2]
[365938738,1749991852485,-526.32047267,0.000242,2]
[365938739,1749991852495,-200.0,0.000242,3]
[365938740,1749991852505,-79243.26,0.000242,7]
[365938741,1749991852514,-740.41,0.000242,7]
[365938742,1749991852523,-1910.76,0.000242,7]
[365938743,1749991852533,-151.0,0.000242,7]
[365938744,1749991852542,-153.0,0.00024219,2]
[365938745,1749991852552,-153.0,0.00024219,2]
[365938746,1749991852561,-153.0,0.00024219,2]
[365938747,1749991852571,-153.0,0.00024219,2]
[365938748,1749991852581,-153.0,0.00024219,2]
[365938749,1749991852590,-153.0,0.00024219,2]
[365938750,1749991852599,-1971.62123223,0.00024245,10]
[365938751,1749991852609,-507.28505521,0.00024264,2]
[365938752,1749991852618,-259.083111,0.00024298,7]
[365938753,1749991852628,-151.0,0.00024298,7]
[365938754,1749991852637,-151.0,0.00024298,7]
[365938755,1749991852646,-151.0,0.000243,8]
[365938756,1749991852655,-151.0,0.00024314,7]
[365938757,1749991852665,-151.0,0.00024314,7]
[365938758,1749991852674,-459.585345,0.00024314,7]
[365938759,1749991852683,-459.585345,0.00024314,7]
[365938760,1749991852693,-5000.0,0.00024314,2]
[365938761,1749991852703,-700.0,0.00024352,2]
[365938762,1749991852712,-4500.0,0.00024356,2]
[365938763,1749991852721,-2835.68659991,0.00024356,2]
[365938764,1749991852731,-527.86,0.00024381,2]
[365938765,1749991852740,-460.0,0.00024381,2]
[365938766,1749991852750,-565.63,0.00024381,2]
[365938767,1749991852759,-1088.49,0.00024381,2]
[365938768,1749991852768,-1274.72,0.00024382,2]
[365938769,1749991852778,-460.0,0.00024382,2]
[365938770,1749991852787,-1051.34,0.00024383,2]
[365938771,1749991852797,-1024.56,0.00024383,2]
[365938772,1749991852807,-856.09,0.00024383,2]
[365938773,1749991852817,-1121.96,0.00024383,2]
[365938774,1749991852826,-1202.41,0.00024383,2]
[365938775,1749991852836,-712.46,0.00024383,2]
[365938776,1749991852846,-695.89,0.00024383,2]
[365938777,1749991852855,-1428.807616,0.00024401,3]
[365938778,1749991852865,-500.0,0.0002445,2]
[365938779,1749991852874,-1971.62123223,0.00024452,11]
[365938780,1749991852883,-500.0,0.00024464,2]
[365938781,1749991852893,-500.0,0.00024524,2]
[365938782,1749991852902,-500.0,0.00024526,2]
[365938783,1749991852911,-168.0,0.0002454,2]
[365938784,1749991852920,-247.42374378,0.000246,2]
[365938785,1749991852930,-4800.0,0.000246,2]
[365938786,1749991852939,-439.85234206,0.0002462,2]
[365938787,1749991852949,-500.0,0.0002465,2]
[365938788,1749991853036,-7581.84,0.0002465,2]
[365938789,1749991853055,-527.86,0.00024655,2]
[365938790,1749991853065,-460.0,0.00024655,2]
[365938791,1749991853075,-565.63,0.00024655,2]
[365938792,1749991853084,-1088.49,0.00024655,2]
[365938793,1749991853094,-1274.72,0.00024656,2]
[365938794,1749991853103,-460.0,0.00024656,2]
[365938795,1749991853112,-1051.34,0.00024657,2]
[365938796,1749991853122,-1024.56,0.00024657,2]
[365938797,1749991853131,-856.09,0.00024657,2]
[365938798,1749991853141,-1121.96,0.00024657,2]
[365938799,1749991853151,-1202.41,0.00024657,2]
[365938800,1749991853160,-712.46,0.00024657,2]
[365938801,1749991853170,-695.89,0.00024657,2]
[365938802,1749991853179,-1000.0,0.00024658,2]
[365938803,1749991853188,-200.0,0.00024658,2]
[365938804,1749991853198,-200.0,0.00024658,15]
[365938805,1749991853207,-1000.0,0.00024658,2]
[365938806,1749991853217,-380.0,0.00024658,2]
[365938807,1749991853226,-1000.0,0.00024658,2]
[365938808,1749991853235,-1000.0,0.00024658,2]
[365938809,1749991853244,-1971.62123223,0.00024659,11]
[365938810,1749991853253,-1987.50617614,0.000247,2]
[365938811,1749991853262,-1987.50617614,0.00024726,2]
[365938812,1749991853272,-500.0,0.00024733,2]
[365938813,1749991853282,-1987.50617614,0.00024752,2]
[365938814,1749991853291,-500.0,0.00024765,2]
[365938815,1749991853302,-1987.50617614,0.00024778,2]
[365938816,1749991853311,-2000.0,0.000248,2]
[365938817,1749991853321,-56575.42,0.000248,2]
[365938818,1749991853331,-151.0,0.000248,7]
[365938819,1749991853340,-676.14,0.000248,31]
[365938820,1749991853349,-676.14,0.000248,31]
[365938821,1749991853358,-676.14,0.000248,31]
[365938822,1749991853368,-676.14,0.000248,31]
[365938823,1749991853377,-676.14,0.000248,31]
[365938824,1749991853386,-676.14,0.000248,31]
[365938825,1749991853396,-676.14,0.000248,31]
[365938826,1749991853406,-676.14,0.000248,31]
[365938827,1749991853419,-676.14,0.000248,31]
[365938828,1749991853431,-676.14,0.000248,31]
[365938829,1749991853442,-676.14,0.000248,31]
[365938830,1749991853451,-676.14,0.000248,31]
[365938831,1749991853461,-676.14,0.000248,31]
[365938832,1749991853470,-676.14,0.000248,31]
[365938833,1749991853479,-676.14,0.000248,31]
[365938834,1749991853488,-676.14,0.000248,31]
[365938835,1749991853497,-151.0,0.000248,7]
[365938836,1749991853507,-151.0,0.000248,7]
[365938837,1749991853516,-154.693772,0.000248,7]
[365938838,1749991853526,-1987.50617614,0.00024804,2]
[365938839,1749991853535,-1987.50617614,0.0002483,2]
[365938840,1749991853545,-512.09600527,0.00024832,2]
[365938841,1749991853556,-500.0,0.0002485,2]
[365938842,1749991853565,-1987.50617614,0.00024856,2]
[365938843,1749991853576,-223.0315306,0.0002486,2]
[365938844,1749991853586,-785.27384181,0.00024863,2]
[365938845,1749991853595,-1971.62123223,0.00024866,12]
[365938846,1749991853605,-151.0,0.00024877,2]
[365938847,1749991853615,-198.0,0.00024877,2]
[365938848,1749991853624,-500.0,0.00024877,2]
[365938849,1749991853635,-232.44050036,0.00024877,2]
[365938850,1749991853644,-151.0,0.00024877,2]
[365938851,1749991853653,-1987.50617614,0.00024882,2]
[365938852,1749991853663,-5329.61895121,0.00024885,2]
[365938853,1749991853672,-5000.0,0.00024885,2]
[365938854,1749991853681,-5000.0,0.00024885,2]
[365938855,1749991853690,-5000.0,0.00024885,2]
[365938856,1749991853699,-5000.0,0.00024885,2]
[365938857,1749991853709,-313.71,0.0002489,10]
[365938858,1749991853720,-3800.91685366,0.000249,30]
[365938859,1749991853729,-160.0,0.000249,5]
[365938860,1749991853738,-151.0,0.000249,7]
[365938861,1749991853747,-151.0,0.000249,7]
[365938862,1749991853756,-191.16713,0.000249,7]
[365938863,1749991853766,-151.0,0.000249,7]
[365938864,1749991853775,-151.0,0.000249,7]
[365938865,1749991853784,-151.0,0.000249,7]
[365938866,1749991853793,-151.0,0.000249,7]
[365938867,1749991853803,-151.0,0.000249,7]
[365938868,1749991853812,-151.0,0.000249,7]
[365938869,1749991853821,-656229.841696,0.000249,2]
[365938870,1749991853831,-151.0,0.000249,7]
[365938871,1749991853840,-459.585345,0.000249,7]
[365938872,1749991853849,-459.585345,0.000249,7]
[365938873,1749991853858,-151.0,0.000249,7]
[365938874,1749991853868,-151.0,0.000249,7]
[365938875,1749991853877,-306.79764681,0.000249,5]
[365938876,1749991853887,-151.0,0.000249,7]
[365938877,1749991853896,-5000.0,0.00024904,2]
[365938878,1749991853906,-235.54694619,0.00024904,2]
[365938879,1749991853915,-500.0,0.00024904,2]
[365938880,1749991853924,-151.0,0.00024904,2]
[365938881,1749991853933,-1987.50617614,0.00024908,2]
[365938882,1749991853943,-527.86,0.00024929,2]
[365938883,1749991853952,-460.0,0.00024929,2]
[365938884,1749991853961,-565.63,0.00024929,2]
[365938885,1749991853970,-1088.49,0.00024929,2]
[365938886,1749991853980,-1274.72,0.0002493,2]
[365938887,1749991853989,-460.0,0.0002493,2]
[365938888,1749991853998,-401.11656225,0.00024931,2]
[365938889,1749991854442,-133.77666316,0.00019178,2]
[365938890,1749991854502,466.772734,0.00013699,2]
[365938891,1749991854624,-326.22333684,0.00019178,2]
[365938892,1749991854633,-46.76083176,0.00019178,2]
[365938893,1749991854667,-383.23916824,0.00019178,2]
[365938894,1749991854676,-460.0,0.00019178,2]
[365938895,1749991854686,-460.0,0.00019178,2]
[365938896,1749991854695,-500.0,0.0001945,2]
[365938897,1749991854704,-455.08124486,0.00019452,2]
[365938898,1749991854714,-161.5102222,0.00019452,2]
[365938899,1749991854722,-460.0,0.00019452,2]
[365938900,1749991854731,-460.0,0.00019726,2]
[365938901,1749991854741,-650.22343775,0.00024931,2]
[365938902,1749991854750,-1024.56,0.00024931,2]
[365938903,1749991854759,-157.81200276,0.00024931,2]
[365938904,1749991854858,4080.53177976,0.0001875,2]
[365938905,1749991854905,300.0,0.00019177,2]
[365938906,1749991854944,-172.74383123,0.00019178,2]
[365938909,1749991863412,300.0,0.00019177,2]
[365938911,1749991933084,1707.5783089,0.00018645,2]
[365938917,1749991957738,-302.92489012,0.00018417,2]
[365938919,1749991962537,-246.15132269,0.00018417,2]
[365938921,1749991986194,-291.41053958,0.00018417,2]
[365938922,1749991986216,-8.58946042,0.00018603,2]
[365938923,1749991988593,-200.0,0.00018603,2]
[365938926,1749992114899,160.0,0.00017014,3]
[365938927,1749992143911,-1080.71469791,0.00018177,2]
[365938928,1749992147594,1080.71469791,0.00018,2]
[365938929,1749992157279,-300.0,0.00018176,2]
[365938930,1749992163325,-300.0,0.00018176,2]
[365938931,1749992194510,-500.0,0.00018176,2]
[365938932,1749992195573,-386.03405117,0.00018176,2]
[365938933,1749992195596,-113.96594883,0.00018176,2]
[365938934,1749992219814,155.0,0.00025013,60]
[365938935,1749992224203,-300.0,0.00018175,2]
[365938936,1749992225397,-234.14554386,0.00018176,2]
[365938937,1749992238861,2134.14554386,0.00018,2]
[365938938,1749992242344,155.0,0.00025013,60]
[365938939,1749992281513,-160.0,0.00018076,2]
[365938943,1749992306360,26053.506351,0.00017859,2]
[365938944,1749992315929,170.353101,0.000178,2]
[365938945,1749992316146,170.353101,0.000178,120]
[365938946,1749992332923,419.9166924,0.00017659,2]
[365938947,1749992429723,165.0,0.00017041,3]
[365938949,1749992486666,462.2289067,0.00025019,60]
[365938950,1749992536209,-104.23567517,0.00018076,2]
[365938951,1749992536232,-173.3,0.00018164,2]
[365938952,1749992536257,-300.0,0.00018173,2]
[365938953,1749992536280,-300.0,0.00018173,2]
[365938954,1749992536303,-300.0,0.00018174,2]
[365938955,1749992536327,-1200.0,0.00018174,2]
[365938956,1749992536352,-338.46432483,0.00018174,2]
[365938957,1749992551844,713.56229291,0.0001805,6]
[365938958,1749992571183,-500.0,0.00018173,2]
[365938959,1749992571206,-500.0,0.00018173,2]
[365938960,1749992571230,-359.0,0.00018173,2]
[365938961,1749992611712,-300.0,0.00018172,2]
[365938962,1749992611738,-2457.19619062,0.00018173,2]
[365938963,1749992611771,-141.0,0.00018173,2]
[365938964,1749992611796,-10.80380938,0.00018173,2]
[365938965,1749992626078,960.60657929,0.00018,2]
[365938966,1749992661773,-1163.45706847,0.00018073,2]
[365938967,1749992661950,-300.0,0.00018172,2]
[365938968,1749992661973,-489.19619062,0.00018173,2]
[365938969,1749992661996,-500.0,0.00018173,2]
[365938970,1749992662020,-406.34674091,0.00018173,2]
[365938971,1749992711667,-157.0,0.00018072,2]
[365938972,1749992743636,162.0,0.00017068,3]
[365938974,1749992750052,430.0,0.00025023,60]
[365938978,1749992792488,-54.36095011,0.00018072,2]
[365938979,1749992792509,-300.0,0.00018171,2]
[365938980,1749992792532,-1200.0,0.00018171,2]
[365938981,1749992792554,-300.0,0.00018171,2]
[365938982,1749992792579,-500.0,0.00018175,2]
[365938983,1749992792616,-500.0,0.00018175,2]
[365938984,1749992792642,-500.0,0.00018175,2]
[365938985,1749992792668,-500.0,0.00018175,2]
[365938986,1749992792693,-500.0,0.00018175,2]
[365938987,1749992792716,-2071.99847443,0.00018177,2]
[365938988,1749992837237,-300.0,0.0001817,2]
[365938989,1749992837260,-38.50515148,0.00018171,2]
[365938990,1749992838095,-184.06983909,0.00018171,2]
[365938991,1749992838119,-231.15647126,0.00018171,2]
[365938992,1749992846491,10000.0,0.00024658,120]
[365938994,1749992872229,300.0,0.00024658,120]
[365938996,1749992895039,5000.0,0.0001805,6]
[365938997,1749992901847,951.4371821,0.00017807,2]
[365938998,1749992908794,300.0,0.00024658,120]
[365938999,1749992911614,5000.0,0.0001805,6]
[365939000,1749992945093,-300.0,0.00018169,2]
[365939001,1749992945115,-500.0,0.0001817,2]
[365939002,1749992945136,-493.76859329,0.0001817,2]
[365939003,1749992945157,-500.0,0.0001817,2]
[365939004,1749992945178,-500.0,0.0001817,2]
[365939005,1749992945200,-500.0,0.0001817,2]
[365939006,1749992945221,-234.18945702,0.0001817,2]
[365939007,1749992945246,-500.0,0.0001817,2]
[365939008,1749992945270,-500.0,0.0001817,2]
[365939009,1749992945308,-437.40490305,0.0001817,2]
[365939010,1749992945335,-500.0,0.0001817,2]
[365939011,1749992945362,-500.0,0.0001817,2]
[365939012,1749992945388,-500.0,0.0001817,2]
[365939013,1749992945416,-500.0,0.0001817,2]
[365939014,1749992945443,-500.0,0.0001817,2]
[365939015,1749992945468,-500.0,0.0001817,2]
[365939016,1749992945500,-500.0,0.0001817,2]
[365939017,1749992945524,-500.0,0.0001817,2]
[365939018,1749992945549,-500.0,0.0001817,2]
[365939019,1749992945572,-500.0,0.0001817,2]
[365939020,1749992945597,-500.0,0.0001817,2]
[365939021,1749992945620,-500.0,0.0001817,2]
[365939022,1749992945643,-500.0,0.0001817,2]
[365939023,1749992945666,-500.0,0.0001817,2]
[365939024,1749992945688,-500.0,0.0001817,2]
[365939025,1749992945710,-500.0,0.0001817,2]
[365939026,1749992945737,-500.0,0.0001817,2]
[365939027,1749992945762,-500.0,0.0001817,2]
[365939028,1749992945786,-500.0,0.0001817,2]
[365939029,1749992945809,-515.08480962,0.0001817,2]
[365939030,1749992945832,-500.0,0.0001817,2]
[365939031,1749992945857,-500.0,0.0001817,2]
[365939032,1749992945881,-500.0,0.0001817,2]
[365939033,1749992945903,-500.0,0.0001817,2]
[365939034,1749992945926,-500.0,0.0001817,2]
[365939035,1749992945948,-500.0,0.0001817,2]
[365939036,1749992945970,-500.0,0.0001817,2]
[365939037,1749992945996,-500.0,0.0001817,2]
[365939038,1749992946018,-192.21989898,0.0001817,2]
[365939039,1749992946041,-500.0,0.0001817,2]
[365939040,1749992946067,-500.0,0.0001817,2]
[365939041,1749992946090,-500.0,0.0001817,2]
[365939042,1749992946114,-500.0,0.0001817,2]
[365939043,1749992946137,-500.0,0.0001817,2]
[365939044,1749992946159,-500.0,0.0001817,2]
[365939045,1749992946181,-500.0,0.0001817,2]
[365939046,1749992946203,-500.0,0.0001817,2]
[365939047,1749992946226,-500.0,0.0001817,2]
[365939048,1749992946247,-500.0,0.0001817,2]
[365939049,1749992946270,-500.0,0.0001817,2]
[365939050,1749992946292,-500.0,0.0001817,2]
[365939051,1749992946315,-500.0,0.0001817,2]
[365939052,1749992946337,-500.0,0.0001817,2]
[365939053,1749992946358,-500.0,0.0001817,2]
[365939054,1749992946382,-500.0,0.0001817,2]
[365939055,1749992946406,-500.0,0.00018176,2]
[365939056,1749992946430,-500.0,0.00018176,2]
[365939057,1749992946454,-500.0,0.00018176,2]
[365939058,1749992946477,-190.02007582,0.00018176,2]
[365939059,1749992946499,-500.0,0.00018176,2]
[365939060,1749992946530,-500.0,0.00018176,2]
[365939061,1749992946554,-500.0,0.00018176,2]
[365939062,1749992946579,-500.0,0.00018176,2]
[365939063,1749992946602,-500.0,0.00018176,2]
[365939064,1749992946625,-500.0,0.00018176,2]
[365939065,1749992946650,-633.01405307,0.00018176,2]
[365939066,1749992946671,-21747.28682766,0.00018177,2]
[365939067,1749992946693,-1018.02493492,0.0001828,2]
[365939068,1749992946713,-1000.0,0.0001838,2]
[365939069,1749992946737,-1000.0,0.0001838,2]
[365939070,1749992946758,-15.12861218,0.00018603,2]
[365939071,1749992946780,-1800.09309503,0.000189,2]
[365939072,1749992946802,-181.00958403,0.00019078,2]
[365939073,1749992946824,-160.0,0.00019145,2]
[365939074,1749992946849,-2080.4322,0.00019166,2]
[365939075,1749992946872,-220.08,0.00019168,3]
[365939076,1749992946894,-660.25,0.00019168,3]
[365939077,1749992946916,-173.3,0.00019168,2]
[365939078,1749992946939,-500.0,0.00019173,2]
[365939079,1749992946960,-545.25559838,0.00019173,2]
[365939080,1749992946982,-500.0,0.00019173,2]
[365939081,1749992947003,-500.0,0.00019173,2]
[365939082,1749992947024,-500.0,0.00019173,2]
[365939083,1749992947044,-566.49146546,0.00019173,2]
[365939084,1749992947064,-500.0,0.00019173,2]
[365939085,1749992947084,-500.0,0.00019173,2]
[365939086,1749992947104,-500.0,0.00019173,2]
[365939087,1749992947125,-500.0,0.00019173,2]
[365939088,1749992947145,-500.0,0.00019173,2]
[365939089,1749992947165,-203.32136593,0.00019173,2]
[365939090,1749992947185,-500.0,0.00019173,2]
[365939091,1749992947206,-500.0,0.00019173,2]
[365939092,1749992947228,-500.0,0.00019173,2]
[365939093,1749992947249,-500.0,0.00019173,2]
[365939094,1749992947270,-500.0,0.00019173,2]
[365939095,1749992947290,-449.90769174,0.00019173,2]
[365939096,1749992947311,-500.0,0.00019173,2]
[365939097,1749992947332,-500.0,0.00019173,2]
[365939098,1749992947352,-1000.0,0.00019176,2]
[365939099,1749992947374,-160.0,0.00019177,2]
[365939100,1749992947395,-1000.0,0.00019177,2]
[365939101,1749992947415,-1000.0,0.00019177,2]
[365939102,1749992947435,-440.0,0.00019178,2]
[365939103,1749992947456,-460.0,0.00019178,2]
[365939104,1749992947477,-440.0,0.00019178,2]
[365939105,1749992947497,-460.0,0.00019178,2]
[365939106,1749992947518,-447.97478659,0.00019178,2]
[365939107,1749992947539,-430.0,0.00019178,2]
[365939108,1749992947559,-420.0,0.00019178,2]
[365939109,1749992947583,-460.0,0.00019178,2]
[365939110,1749992947604,-464.70185863,0.00019178,2]
[365939111,1749992947625,-401.51447888,0.00019178,2]
[365939112,1749992952212,-58.48552112,0.00019178,2]
[365939113,1749992952240,-460.0,0.00019178,2]
[365939114,1749992952260,-425.7994646,0.00019178,2]
[365939115,1749992952281,-460.0,0.00019178,2]
[365939116,1749992952302,-460.0,0.00019178,2]
[365939117,1749992952322,-460.0,0.00019178,2]
[365939118,1749992952343,-449.34762174,0.00019178,2]
[365939119,1749992952363,-460.0,0.00019178,2]
[365939120,1749992952388,-460.0,0.00019178,2]
[365939121,1749992952409,-335.95932143,0.00019178,2]
[365939122,1749992952432,-460.0,0.00019178,2]
[365939123,1749992952453,-460.0,0.00019178,2]
[365939124,1749992952474,-442.93225013,0.00019178,2]
[365939125,1749992952501,-343.37731223,0.00019178,2]
[365939126,1749992952523,-460.0,0.00019178,2]
[365939127,1749992952543,-443.6743251,0.00019178,2]
[365939128,1749992952563,-460.0,0.00019178,2]
[365939129,1749992952583,-439.25751693,0.00019178,2]
[365939130,1749992952604,-460.0,0.00019178,2]
[365939131,1749992952626,-444.50915629,0.00019178,2]
[365939132,1749992952646,-437.67154463,0.00019178,2]
[365939133,1749992952667,-433.17335857,0.00019178,2]
[365939134,1749992952690,-444.83282733,0.00019178,2]
[365939135,1749992952715,-440.0,0.00019178,2]
[365939136,1749992952740,-460.0,0.00019178,2]
[365939137,1749992952761,-441.37249762,0.00019178,2]
[365939138,1749992952783,-460.0,0.00019178,2]
[365939139,1749992952809,-460.0,0.00019178,2]
[365939140,1749992952831,-304.83105405,0.00019178,2]
[365939141,1749992952857,-460.0,0.00019178,2]
[365939142,1749992952878,-460.0,0.00019178,2]
[365939143,1749992952900,-420.0,0.00019178,2]
[365939144,1749992952921,-430.80518927,0.00019178,2]
[365939145,1749992952946,-460.0,0.00019178,2]
[365939146,1749992952968,-391.6084626,0.00019178,2]
[365939147,1749992952995,-460.0,0.00019178,2]
[365939148,1749992953016,-460.0,0.00019178,2]
[365939149,1749992953040,-430.0,0.00019178,2]
[365939150,1749992953062,-443.15173129,0.00019178,2]
[365939151,1749992953084,-443.2128178,0.00019178,2]
[365939152,1749992953107,-458.21902543,0.00019178,2]
[365939153,1749992953128,-460.0,0.00019178,2]
[365939154,1749992953150,-460.0,0.00019178,2]
[365939155,1749992953173,-283.29996522,0.00019178,2]
[365939156,1749992953195,-434.18636228,0.00019178,2]
[365939157,1749992953218,-460.0,0.00019178,2]
[365939158,1749992953244,-443.32851862,0.00019178,2]
[365939159,1749992953266,-385.84312256,0.00019178,2]
[365939160,1749992953288,-460.0,0.00019178,2]
[365939161,1749992953309,-413.94152853,0.00019178,2]
[365939162,1749992953331,-441.93847417,0.00019178,2]
[365939163,1749992953353,-433.11506284,0.00019178,2]
[365939164,1749992953375,-268.75852373,0.00019178,2]
[365939165,1749992953398,-447.92428157,0.00019178,2]
[365939166,1749992953420,-460.0,0.00019178,2]
[365939167,1749992953441,-431.96921854,0.00019178,2]
[365939168,1749992953461,-440.0,0.00019178,2]
[365939169,1749992953486,-460.0,0.00019178,2]
[365939170,1749992953507,-430.51356615,0.00019178,2]
[365939171,1749992953529,-460.0,0.00019178,2]
[365939172,1749992953552,-460.0,0.00019178,2]
[365939173,1749992953574,-430.0,0.00019178,2]
[365939174,1749992953596,-448.46524953,0.00019178,2]
[365939175,1749992953619,-460.0,0.00019178,2]
[365939176,1749992953640,-460.0,0.00019178,2]
[365939177,1749992953661,-431.50946242,0.00019178,2]
[365939178,1749992953683,-448.82792809,0.00019178,2]
[365939179,1749992953704,-460.0,0.00019178,2]
[365939180,1749992953725,-433.85593584,0.00019178,2]
[365939181,1749992953750,-445.74139832,0.00019178,2]
[365939182,1749992953776,-460.0,0.00019178,2]
[365939183,1749992953798,-460.0,0.00019178,2]
[365939184,1749992953820,-460.0,0.00019178,2]
[365939185,1749992953842,-389.01144997,0.00019178,2]
[365939186,1749992953865,-460.0,0.00019178,2]
[365939187,1749992953887,-460.0,0.00019178,2]
[365939188,1749992953911,-460.0,0.00019178,2]
[365939189,1749992953932,-460.0,0.00019178,2]
[365939190,1749992953953,-372.8458225,0.00019178,2]
[365939191,1749992953974,-460.0,0.00019178,2]
[365939192,1749992953999,-345.29516723,0.00019178,2]
[365939193,1749992954019,-394.82409152,0.00019178,2]
[365939194,1749992954040,-460.0,0.00019178,2]
[365939195,1749992954063,-460.0,0.00019178,2]
[365939196,1749992954084,-460.0,0.00019178,2]
[365939197,1749992954104,-350.07941233,0.00019178,2]
[365939198,1749992954124,-440.86051761,0.00019178,2]
[365939199,1749992954144,-343.10227837,0.00019178,2]
[365939200,1749992954164,-453.66044657,0.00019178,2]
[365939201,1749992954185,-460.0,0.00019178,2]
[365939202,1749992954206,-460.0,0.00019178,2]
[365939203,1749992954226,-430.0,0.00019178,2]
[365939204,1749992954250,-460.0,0.00019178,2]
[365939205,1749992954272,-514.0068478,0.00019178,2]
[365939206,1749992954293,-433.58449743,0.00019178,2]
[365939207,1749992954314,-274.78,0.00019178,2]
[365939208,1749992954335,-433.25231049,0.00019178,2]
[365939209,1749992954356,-460.0,0.00019178,2]
[365939210,1749992954378,-460.0,0.00019178,2]
[365939211,1749992954399,-552.01736444,0.00019178,2]
[365939212,1749992954420,-398.66251846,0.00019178,2]
[365939213,1749992954442,-440.0,0.00019178,2]
[365939214,1749992954463,-430.40898799,0.00019178,2]
[365939215,1749992954486,-433.28200542,0.00019178,2]
[365939216,1749992954507,-460.0,0.00019178,2]
[365939217,1749992954529,-410.00519414,0.00019178,2]
[365939218,1749992954551,-440.69206439,0.00019178,2]
[365939219,1749992954572,-301.60213888,0.00019178,2]
[365939220,1749992954592,-400.0,0.00019178,2]
[365939221,1749992954614,-430.0,0.00019178,2]
[365939222,1749992954634,-400.0,0.00019178,2]
[365939223,1749992954656,-460.0,0.00019178,2]
[365939224,1749992954678,-460.0,0.00019178,2]
[365939225,1749992954699,-365.18650687,0.00019178,2]
[365939226,1749992954847,-430.0,0.00019178,2]
[365939227,1749992954872,-460.0,0.00019178,2]
[365939228,1749992954896,-434.35305602,0.00019178,2]
[365939229,1749992954918,-312.46173306,0.00019178,2]
[365939230,1749992954942,-460.0,0.00019178,2]
[365939231,1749992954964,-460.0,0.00019178,2]
[365939232,1749992954988,-508.07987483,0.00019178,2]
[365939233,1749992955010,-460.0,0.00019178,2]
[365939234,1749992955035,-460.0,0.00019178,2]
[365939235,1749992955057,-460.0,0.00019178,2]
[365939236,1749992955078,-460.0,0.00019178,2]
[365939237,1749992955099,-440.74307886,0.00019178,2]
[365939238,1749992955120,-443.35024463,0.00019178,2]
[365939239,1749992955142,-403.9576002,0.00019178,2]
[365939240,1749992955164,-460.0,0.00019178,2]
[365939241,1749992955186,-440.86722843,0.00019178,2]
[365939242,1749992955208,-460.0,0.00019178,2]